bitfinex-derivatives/quotes_SOLF0:USTF0_20250703
["timestamp","ask_amount","ask_price","bid_price","bid_amount"]
[1751546939544,5.65834986,152.37,152.28,52.18]
[1751546939742,5.65834986,152.33,152.28,52.18]
[1751546939943,6.5625,152.33,152.29,6.564]
[1751546940650,6.5625,152.33,152.3,6.5636]
[1751546940949,5.65834986,152.35,152.28,52.18]
[1751546940950,6.5629,152.32,152.28,52.18]
[1751546941251,6.5629,152.32,152.29,6.5639]
[1751546941551,6.5628,152.33,152.28,52.18]
[1751546941744,5.65834986,152.35,152.28,52.18]
[1751546941939,13.1177,152.42,152.3,6.5635]
[1751546942147,6.5628,152.33,152.3,6.5635]
[1751546942343,5.65834986,152.36,152.28,57.83834986]
[1751546942651,6.5623,152.34,152.31,6.563]
[1751546942851,5.65834986,152.36,152.31,6.563]
[1751546943150,13.1197,152.4,152.29,208.98]
[1751546943449,5.65834986,152.35,152.3,6.5637]
[1751546943752,5.65834986,152.36,152.29,208.98]
[1751546943951,2.2431,152.44,152.33,6.5622]
[1751546943952,5.65834986,152.39,152.33,6.5622]
[1751546944151,6.5616,152.35,152.34,52.18]
[1751546945652,5.65834986,152.35,152.32,52.18]
[1751546945852,5.65834986,152.33,152.32,52.18]
[1751546946052,12.22084986,152.33,152.32,52.18]
[1751546946355,5.65834986,152.33,152.32,52.18]
[1751546947041,5.65834986,152.35,152.32,52.18]
[1751546947247,6.562,152.34,152.32,52.18]
[1751546947953,12.22014986,152.35,152.32,52.18]
[1751546948153,5.65834986,152.35,152.32,52.18]
[1751546948356,5.65834986,152.37,152.33,6.5622]
[1751546948556,6.5605,152.38,152.32,52.18]
[1751546948864,5.65834986,152.39,152.35,6.5613]
[1751546949151,5.65834986,152.39,152.36,52.18]
[1751546949345,5.65834986,152.37,152.35,52.18]
[1751546950353,5.65834986,152.37,152.28,2.1503]
[1751546950550,5.65834986,152.33,152.29,260.9]
[1751546950752,5.65834986,152.33,152.3,6.5635]
[1751546951056,5.65834986,152.33,152.3,215.2835]
[1751546951357,5.65834986,152.33,152.3,208.72]
[1751546951663,6.563,152.32,152.29,260.86]
[1751546951959,5.65834986,152.37,152.3,6.5636]
[1751546952149,5.65834986,152.33,152.3,6.5636]
[1751546952357,5.65834986,152.33,152.3,208.68]
[1751546953754,10.35658996,152.32,152.3,208.68]
[1751546954161,3.79368996,152.32,152.3,208.68]
[1751546954853,3.79368996,152.32,152.28,2.1503]
[1751546955156,3.79368996,152.32,152.29,260.76]
[1751546955558,3.79368996,152.34,152.29,260.76]
[1751546955761,3.79368996,152.36,152.29,264.55368996]
[1751546956157,3.79368996,152.36,152.29,270.66610233]
[1751546956357,3.79368996,152.36,152.29,264.55368996]
[1751546956659,6.5628,152.33,152.3,6.5635]
[1751546956957,6.5628,152.33,152.29,260.76]
[1751546957351,6.5629,152.32,152.29,260.76]
[1751546958455,4.4822,152.39,152.29,264.55368996]
[1751546958657,3.79368996,152.36,152.29,264.55368996]
[1751546958952,3.79368996,152.36,152.29,270.66610233]
[1751546959157,3.79368996,152.36,152.29,271.11768996]
[1751546959557,6.563,152.32,152.29,271.11768996]
[1751546959957,6.5627,152.33,152.3,6.5637]
[1751546960261,3.79368996,152.36,152.29,264.55368996]
[1751546960562,6.5632,152.32,152.29,271.11768996]
[1751546961263,3.79368996,152.34,152.29,52.18]
[1751546961563,3.79368996,152.32,152.3,208.36]
[1751546961760,6.5633,152.31,152.3,208.36]
[1751546963367,5.93259654,152.43,152.3,221.03241237]
[1751546963562,3.79368996,152.4,152.33,6.12533343]
[1751546963762,6.5607,152.37,152.34,270.47538996]
[1751546963967,3.79368996,152.4,152.34,260.12]
[1751546964160,3.79368996,152.38,152.34,260.12]
[1751546964361,6.5615,152.36,152.35,260.1]
[1751546964561,6.5615,152.36,152.32,2.1646]
[1751546964767,6.5615,152.36,152.32,8.7271]
[1751546965164,6.5615,152.36,152.32,6.5625]
[1751546965358,10.35458996,152.37,152.33,266.6224]
[1751546965865,10.35458996,152.37,152.34,260.04]
[1751546966260,3.79368996,152.35,152.31,6.12533343]
[1751546966465,3.79368996,152.35,152.32,51.82]
[1751546966665,3.79368996,152.33,152.32,260.0]
[1751546967268,10.35618996,152.33,152.32,260.0]
[1751546967672,3.79368996,152.33,152.32,259.96]
[1751546968069,3.79368996,152.33,152.32,51.82]
[1751546969182,10.35608996,152.33,152.32,51.82]
[1751546969376,7.58737992,152.33,152.28,51.82]
[1751546969582,3.79368996,152.29,152.24,6.12533343]
[1751546969781,3.79368996,152.29,152.22,8.14988317]
[1751546969782,3.79368996,152.27,152.25,51.82]
[1751546970183,6.5666,152.24,152.23,51.82]
[1751546970373,10.36028996,152.24,152.23,51.82]
[1751546971074,7.58737992,152.24,152.14,573.20533343]
[1751546971272,3.79368996,152.19,152.16,51.82]
[1751546971477,10.36238996,152.19,152.16,259.84]
[1751546971678,3.79368996,152.19,152.16,51.82]
[1751546971980,6.5686,152.19,152.16,51.82]
[1751546972584,12.26868541,152.2,152.16,51.82]
[1751546972879,5.70048541,152.2,152.16,259.88]
[1751546973081,12.26878541,152.2,152.16,259.88]
[1751546973279,5.70048541,152.2,152.16,259.88]
[1751546973781,5.70048541,152.2,152.16,266.4495]
[1751546973976,5.70048541,152.2,152.16,259.88]
[1751546974480,6.5681,152.2,152.16,259.88]
[1751546974984,5.70048541,152.2,152.16,259.88]
[1751546975386,6.5694,152.17,152.16,259.78]
[1751546975583,6.5694,152.17,152.16,51.82]
[1751546975783,5.70048541,152.18,152.16,51.82]
[1751546975984,6.7889,152.23,152.16,51.82]
[1751546976282,5.70048541,152.21,152.16,51.82]
[1751546976485,12.26838541,152.21,152.16,51.82]
[1751546977082,6.5683,152.2,152.16,51.82]
[1751546977284,5.70048541,152.19,152.16,51.82]
[1751546977889,5.70048541,152.17,152.16,51.82]
[1751546979185,5.70048541,152.17,152.14,207.9]
[1751546979390,5.70048541,152.17,152.13,51.86]
[1751546979682,5.70048541,152.15,152.13,51.86]
[1751546979985,12.27078541,152.15,152.13,259.74]
[1751546980183,5.70048541,152.15,152.13,259.74]
[1751546980383,5.70048541,152.15,152.13,51.86]
[1751546980589,5.70048541,152.19,152.13,51.86]
[1751546980789,5.70048541,152.17,152.13,51.86]
[1751546980981,5.70048541,152.17,152.13,259.7]
[1751546981181,5.70048541,152.15,152.13,51.86]
[1751546981986,5.70048541,152.15,152.08,573.17329616]
[1751546982181,5.70048541,152.13,152.09,259.72]
[1751546982578,5.70048541,152.13,152.1,207.82]
[1751546984380,12.27158541,152.13,152.1,207.82]
[1751546984891,12.27158541,152.13,152.09,51.86]
[1751546985089,12.27158541,152.13,152.1,207.86]
[1751546985288,5.70048541,152.13,152.1,207.78]
[1751546985486,5.70048541,152.13,152.09,51.86]
[1751546985789,5.70048541,152.13,151.94,6.12533343]
[1751546985790,5.70048541,152.1,151.94,6.12533343]
[1751546986093,2.1567,152.12,152.02,5.70048541]
[1751546986297,205.58218944,152.13,152.03,259.6]
[1751546986589,5.70048541,152.18,152.04,54.2053]
[1751546986787,5.70048541,152.16,152.04,54.2053]
[1751546986994,5.70048541,152.16,152.05,4.6613]
[1751546987190,5.70048541,152.16,152.09,6.5728]
[1751546987383,5.70048541,152.16,152.1,259.58]
[1751546987582,4.3235,152.22,152.1,259.58]
[1751546987788,6.5702,152.16,152.1,259.58]
[1751546988088,4.3235,152.22,152.09,5.70048541]
[1751546988089,5.70048541,152.21,152.09,567.76]
[1751546988290,5.70048541,152.17,152.1,51.88]
[1751546988486,5.70048541,152.17,152.11,207.72]
[1751546989597,6.5705,152.15,152.11,207.72]
[1751546990490,5.70048541,152.17,152.11,207.72]
[1751546990793,5.70048541,152.15,152.11,207.72]
[1751546991303,5.70048541,152.16,152.11,207.72]
[1751546991795,3.80218102,152.15,152.11,207.72]
[1751546991991,6.5711,152.13,152.11,207.72]
[1751546992395,3.80218102,152.15,152.11,207.72]
[1751546992698,3.80218102,152.13,152.09,826.88]
[1751546993091,6.5724,152.1,152.09,619.28]
[1751546993294,6.5724,152.1,152.09,51.52]
[1751546993592,3.80218102,152.11,152.06,207.58]
[1751546993794,6.5737,152.07,152.06,207.58]
[1751546994097,3.80218102,152.08,152.04,259.08]
[1751546994892,51.52,152.14,152.04,259.08]
[1751546995094,3.80218102,152.08,152.04,259.08]
[1751546995286,10.37648102,152.06,152.04,259.08]
[1751546995691,3.80218102,152.06,152.04,259.08]
[1751546995891,6.5743,152.06,152.04,259.08]
[1751546996492,5.70915213,152.08,152.04,259.08]
[1751546997093,5.70915213,152.08,152.0,2.1752]
[1751546997395,5.70915213,152.04,151.98,207.5]
[1751546997599,5.70915213,152.04,151.98,214.0775]
[1751546997799,5.70915213,152.04,151.98,207.5]
[1751546998193,5.70915213,152.05,151.97,51.52]
[1751546998393,5.70915213,152.03,151.98,209.772]
[1751546998593,5.70915213,152.01,151.98,2.312]
[1751546998894,5.70915213,152.02,151.97,261.2739]
[1751546999094,5.70915213,152.03,151.97,261.2739]
[1751546999294,5.70915213,152.03,151.97,2.2939]
[1751546999594,5.70915213,152.03,151.98,258.98]
[1751546999997,5.70915213,152.02,151.97,2.2939]
[1751547000194,6.5771,152.0,151.97,261.3139]
[1751547000397,5.70915213,152.02,151.97,261.3139]
[1751547000599,5.70915213,152.08,151.99,5.70915213]
[1751547000905,210.40406363,152.12,152.03,5.70915213]
[1751547001197,5.70915213,152.1,152.04,265.8208]
[1751547001390,5.70915213,152.08,152.05,51.54]
[1751547001591,5.70915213,152.08,151.9,6.12533343]
[1751547001592,5.70915213,152.06,151.9,6.12533343]
[1751547001799,12.28565213,152.01,151.94,4.4994]
[1751547001996,5.70915213,152.01,151.94,4.4994]
[1751547002198,5.70915213,152.02,151.95,207.42]
[1751547002392,5.70915213,152.02,151.96,51.54]
[1751547002898,5.70915213,152.02,151.97,207.4]
[1751547003799,5.70915213,151.98,151.9,51.54]
[1751547003995,51.54,152.05,151.9,51.54]
[1751547004199,13.151,152.03,151.91,207.36]
[1751547004399,6.5783,151.97,151.93,6.5795]
[1751547004702,5.70915213,152.0,151.91,213.06915213]
[1751547005098,6.5781,151.97,151.94,6.5791]
[1751547005401,5.70915213,152.0,151.95,51.54]
[1751547005602,5.70915213,152.03,151.96,207.38]
[1751547005896,7.94845213,152.07,151.97,8.08015213]
[1751547006098,5.70915213,152.07,151.97,2.371]
[1751547006299,5.70915213,152.08,151.98,5.70915213]
[1751547006497,5.70915213,152.08,151.99,5.70915213]
[1751547006696,5.70915213,152.08,151.97,2.371]
[1751547006697,5.70915213,152.1,152.01,5.70915213]
[1751547006995,5.70915213,152.1,152.02,207.36]
[1751547007202,6.5744,152.06,152.02,213.9355]
[1751547007400,6.5744,152.06,152.02,207.36]
[1751547007598,51.54,152.17,152.02,207.36]
[1751547007804,6.5741,152.06,152.03,10.9825]
[1751547007998,5.70915213,152.1,152.03,10.9825]
[1751547008198,5.70915213,152.1,152.03,4.4071]
[1751547008599,5.70915213,152.1,152.04,2.195]
[1751547008792,5.70915213,152.1,152.05,51.54]
[1751547008997,6.5736,152.08,152.05,51.54]
[1751547009400,5.70915213,152.1,152.05,51.54]
[1751547009606,53.6864,152.17,152.05,51.54]
[1751547009911,5.70915213,152.13,152.05,51.54]
[1751547010099,13.1417,152.14,152.03,621.857]
[1751547010305,5.70915213,152.07,152.03,621.857]
[1751547010503,2.1464,152.17,152.03,621.857]
[1751547010702,2.1464,152.17,152.06,5.70915213]
[1751547010901,5.70915213,152.16,152.07,209.5461]
[1751547011101,5.70915213,152.16,152.08,57.24915213]
[1751547011303,5.70915213,152.18,152.08,57.24915213]
[1751547011609,6.57,152.16,152.12,6.5712]
[1751547011902,5.70915213,152.18,152.13,51.54]
[1751547012100,6.5703,152.15,152.13,43.3254189]
[1751547012302,5.45707285,152.14,152.13,43.3254189]
[1751547012502,11.16622498,152.14,152.07,2.2661]
[1751547012704,6.5723,152.11,152.08,51.54]
[1751547012903,11.16622498,152.1,152.08,51.54]
[1751547013106,5.45707285,152.09,152.08,51.54]
[1751547013311,5.45707285,152.09,152.08,58.1132]
[1751547013512,5.45707285,152.09,152.08,51.54]
[1751547013701,11.16622498,152.09,152.08,51.54]
[1751547014206,11.16622498,152.09,152.05,568.14]
[1751547014207,6.5743,152.06,152.05,51.54]
[1751547014510,17.74052498,152.06,152.05,51.54]
[1751547014910,11.16622498,152.06,152.04,51.54]
[1751547015106,5.45707285,152.05,152.01,568.14]
[1751547015308,6.5755,152.03,152.0,2.1589]
[1751547015610,5.70915213,152.04,152.01,51.54]
[1751547015911,4.64913611,152.03,152.01,36.74408908]
[1751547016110,4.64913611,152.02,152.01,36.74408908]
[1751547017418,6.31178969,152.02,152.01,36.74408908]
[1751547017817,12.02094182,152.02,152.0,51.54]
[1751547018106,6.31178969,152.01,152.0,51.54]
[1751547019304,5.70915213,152.08,152.0,58.12]
[1751547019509,58.2412,152.14,152.0,51.54]
[1751547019711,6.5744,152.06,152.0,51.54]
[1751547020107,6.5744,152.06,152.02,6.5754]
[1751547020303,12.28295213,152.07,152.03,207.1]
[1751547020509,5.70915213,152.09,152.03,207.1]
[1751547021109,6.5739,152.07,152.04,6.5747]
[1751547021309,5.70915213,152.09,152.05,51.56]
[1751547021703,5.70915213,152.07,151.99,2.1842]
[1751547021916,5.70915213,152.09,152.0,258.38]
[1751547022211,6.5721,152.11,152.03,5.70915213]
[1751547022407,5.70915213,152.14,152.05,5.70915213]
[1751547022614,5.70915213,152.14,152.06,262.8153]
[1751547022817,6.5719,152.11,152.08,6.573]
[1751547023016,5.70915213,152.14,152.08,6.573]
[1751547023619,5.70915213,152.14,152.09,6.5727]
[1751547023817,202.29676546,152.15,152.07,5.70915213]
[1751547024017,5.70915213,152.16,152.08,568.16]
[1751547024217,5.70915213,152.16,152.1,6.5721]
[1751547024418,5.70915213,152.16,152.11,51.28]
[1751547024812,5.70915213,152.16,152.11,258.3]
[1751547025015,5.70915213,152.18,152.11,258.3]
[1751547025211,6.5702,152.16,152.13,6.5707]
[1751547025523,2.3495,152.2,152.11,258.3]
[1751547025712,5.70915213,152.18,152.11,258.3]
[1751547025914,2.3495,152.2,152.11,258.3]
[1751547026118,5.70915213,152.18,152.11,258.3]
[1751547026420,6.5697,152.17,152.11,258.3]
[1751547026721,2.1503,152.23,152.11,264.00915213]
[1751547026917,6.5692,152.18,152.14,6.5703]
[1751547027118,5.70915213,152.16,152.06,4.4553]
[1751547027320,5.70915213,152.14,152.08,568.06]
[1751547027520,5.70915213,152.14,152.11,6.5717]
[1751547027714,5.70915213,152.14,152.12,51.28]
[1751547028612,6.5711,152.13,152.12,51.28]
[1751547029021,5.70915213,152.16,152.12,51.28]
[1751547029717,6.571,152.14,152.12,51.28]
[1751547029917,5.70915213,152.16,152.12,51.28]
[1751547030323,12.27905213,152.16,152.12,57.8515]
[1751547030719,5.70915213,152.18,152.12,51.28]
[1751547031119,6.5694,152.17,152.12,51.28]
[1751547031322,5.27492941,152.16,152.12,51.28]
[1751547031517,5.27492941,152.15,152.14,6.5706]
[1751547031821,5.27492941,152.15,152.12,51.28]
[1751547032126,5.27492941,152.14,152.12,51.28]
[1751547032328,5.27492941,152.13,152.12,51.28]
[1751547033528,5.27492941,152.13,152.12,57.8515]
[1751547034018,5.27492941,152.13,152.12,51.28]
[1751547035029,5.27492941,152.13,152.12,258.0]
[1751547035217,5.27492941,152.13,152.06,4.4553]
[1751547035218,5.27492941,152.13,152.11,51.26]
[1751547035420,5.70915213,152.15,152.11,51.26]
[1751547035421,5.27492941,152.12,152.11,51.26]
[1751547035722,5.70915213,152.17,152.11,51.26]
[1751547036023,5.4123815,152.16,152.15,6.5702]
[1751547036320,5.4123815,152.16,152.15,264.5302]
[1751547036521,2.1503,152.23,152.15,257.96]
[1751547036522,6.5687,152.19,152.15,257.96]
[1751547036725,51.26,152.3,152.16,573.62915213]
[1751547036726,13.1283,152.3,152.16,573.62915213]
[1751547036928,5.70915213,152.28,152.16,567.92]
[1751547037431,5.70915213,152.22,152.16,567.92]
[1751547037730,5.70915213,152.27,152.18,5.70915213]
[1751547037932,5.70915213,152.27,152.19,206.66]
[1751547038232,5.70915213,152.27,152.18,5.70915213]
[1751547038233,5.70915213,152.28,152.2,257.92]
[1751547038434,2.2206,152.3,152.2,257.92]
[1751547038730,2.2206,152.3,152.24,6.5661]
[1751547038930,2.2206,152.3,152.25,257.88]
[1751547039124,5.70915213,152.29,152.25,257.88]
[1751547039328,4.4711,152.33,152.25,257.88]
[1751547039527,5.70915213,152.32,152.25,51.26]
[1751547039730,5.70915213,152.32,152.26,206.6]
[1751547040245,1.14287591,152.39,152.26,212.30915213]
[1751547040437,5.70915213,152.35,152.26,212.30915213]
[1751547040637,6.5621,152.34,152.26,212.30915213]
[1751547040934,2.1871,152.38,152.28,5.70915213]
[1751547040935,5.70915213,152.38,152.28,5.70915213]
[1751547041248,10.22325213,152.4,152.3,5.70915213]
[1751547041434,2.1871,152.43,152.32,5.70915213]
[1751547041635,2.1871,152.43,152.25,580.9518]
[1751547041636,2.1871,152.43,152.34,5.70915213]
[1751547041842,5.70915213,152.38,152.35,51.24]
[1751547042035,2.1871,152.43,152.35,51.24]
[1751547042238,2.1871,152.43,152.37,6.5604]
[1751547042546,5.70915213,152.45,152.38,206.52]
[1751547042936,7.92645213,152.46,152.35,618.9]
[1751547043144,5.70915213,152.4,152.35,825.4]
[1751547043644,5.70915213,152.42,152.35,825.4]
[1751547043845,6.5598,152.4,152.35,831.9612]
[1751547044049,5.70915213,152.42,152.35,825.4]
[1751547044349,5.70915213,152.41,152.36,206.5]
[1751547045046,6.5594,152.4,152.36,206.5]
[1751547045442,5.70915213,152.42,152.36,206.5]
[1751547045740,2.1888,152.48,152.37,5.70915213]
[1751547045943,5.70915213,152.47,152.39,5.70915213]
[1751547046244,2.1888,152.48,152.4,257.62]
[1751547046448,5.70915213,152.46,152.4,257.62]
[1751547046741,7.89795213,152.48,152.4,257.62]
[1751547046950,7.89795213,152.48,152.4,263.32915213]
[1751547047247,6.5571,152.46,152.41,6.5587]
[1751547047449,7.89795213,152.48,152.4,257.62]
[1751547047642,6.558,152.44,152.4,257.62]
[1751547047842,2.1888,152.48,152.35,567.66]
[1751547048145,12.26805213,152.42,152.37,6.5604]
[1751547048345,5.70915213,152.42,152.36,257.5]
[1751547048548,5.47850934,152.41,152.36,257.5]
[1751547048747,5.47850934,152.4,152.36,257.5]
[1751547048946,5.47850934,152.39,152.36,264.0608]
[1751547049147,5.47850934,152.38,152.36,51.2]
[1751547049346,5.4759375,152.37,152.35,567.66]
[1751547049650,2.1888,152.48,152.36,257.48]
[1751547049845,5.47648779,152.47,152.36,257.48]
[1751547050045,5.70915213,152.46,152.37,5.70915213]
[1751547050244,11.18563992,152.47,152.37,5.70915213]
[1751547050547,5.70915213,152.47,152.37,5.70915213]
[1751547051446,5.70915213,152.45,152.36,254.98915638]
[1751547051645,5.95626728,152.44,152.36,254.98915638]
[1751547051843,6.5591,152.41,152.36,261.55015638]
[1751547052146,5.95626728,152.4,152.37,257.22]
[1751547052344,5.70915213,152.41,152.38,51.02]
[1751547052937,6.5599,152.39,152.38,51.02]
[1751547053550,4.68037557,152.4,152.36,51.02]
[1751547053749,5.70915213,152.39,152.33,567.14]
[1751547054045,6.5606,152.38,152.34,257.18]
[1751547054242,5.70915213,152.41,152.35,257.18]
[1751547054448,4.67905579,152.4,152.36,51.02]
[1751547054952,4.67905579,152.42,152.37,5.70915213]
[1751547055247,53.2088,152.48,152.37,5.70915213]
[1751547055248,4.67905579,152.41,152.37,5.70915213]
[1751547055452,4.67905579,152.4,152.37,5.70915213]
[1751547055751,5.70915213,152.47,152.37,5.70915213]
[1751547055950,6.5583,152.43,152.37,5.70915213]
[1751547056354,6.5578,152.44,152.37,5.70915213]
[1751547056540,5.70915213,152.47,152.39,5.70915213]
[1751547056849,5.70915213,152.47,152.4,212.6791]
[1751547057151,5.70915213,152.47,152.41,51.0]
[1751547057550,6.558,152.44,152.41,51.0]
[1751547057849,2.1888,152.48,152.41,51.0]
[1751547058048,2.1888,152.48,152.42,6.5583]
[1751547058645,2.1888,152.48,152.43,6.558]
[1751547058952,5.70915213,152.51,152.41,56.70915213]
[1751547059152,6.5568,152.47,152.41,56.70915213]
[1751547059552,5.70915213,152.51,152.41,56.70915213]
[1751547059755,6.5572,152.46,152.41,56.70915213]
[1751547060049,5.70915213,152.51,152.41,56.70915213]
[1751547060255,5.70915213,152.49,152.41,56.70915213]
[1751547060451,7.95765213,152.5,152.41,56.70915213]
[1751547060754,6.5571,152.46,152.42,6.5584]
[1751547060949,2.2485,152.5,152.41,56.70915213]
[1751547061146,7.95765213,152.5,152.42,6.5583]
[1751547061346,6.5571,152.46,152.41,56.70915213]
[1751547061554,6.5571,152.46,152.41,51.0]
[1751547061748,6.5571,152.46,152.43,6.5581]
[1751547061943,6.5567,152.47,152.43,6.5581]
[1751547062156,7.95765213,152.5,152.43,6.5581]
[1751547062357,6.5572,152.46,152.42,6.5584]
[1751547062846,6.5572,152.46,152.41,56.70915213]
[1751547063047,6.5566,152.47,152.41,56.70915213]
[1751547063654,6.5563,152.48,152.41,56.70915213]
[1751547063853,6.5563,152.48,152.42,566.84]
[1751547064054,6.5566,152.47,152.44,6.5574]
[1751547064254,6.5566,152.47,152.45,205.96]
[1751547064448,2.2485,152.5,152.46,51.0]
[1751547064660,10.14195213,152.52,152.46,51.0]
[1751547064661,2.2632,152.52,152.46,51.0]
[1751547064850,8.07575213,152.55,152.46,51.0]
[1751547065159,5.70915213,152.53,152.46,51.0]
[1751547065350,5.70915213,152.51,152.43,7.41825213]
[1751547065649,5.70915213,152.51,152.42,566.84]
[1751547065847,5.70915213,152.47,152.43,50.98]
[1751547066050,5.70915213,152.47,152.38,8.05405213]
[1751547066051,5.70915213,152.45,152.38,50.98]
[1751547066250,5.70915213,152.43,152.38,50.98]
[1751547066449,5.70915213,152.44,152.38,50.98]
[1751547066762,6.5597,152.4,152.38,50.98]
[1751547067054,5.70915213,152.43,152.38,50.98]
[1751547067444,4.7238,152.46,152.38,50.98]
[1751547067445,5.70915213,152.41,152.38,50.98]
[1751547067645,5.70915213,152.41,152.35,6.5616]
[1751547067851,5.70915213,152.43,152.36,50.98]
[1751547068050,4.78294759,152.42,152.36,50.98]
[1751547068344,4.78294759,152.41,152.36,50.98]
[1751547068550,5.70915213,152.42,152.36,50.98]
[1751547068751,4.78537038,152.41,152.36,57.541]
[1751547068955,6.5598,152.4,152.36,57.541]
[1751547069453,6.5601,152.39,152.36,50.98]
[1751547069658,5.70915213,152.42,152.36,50.98]
[1751547069860,4.7238,152.46,152.36,50.98]
[1751547070159,4.78853611,152.45,152.38,5.70915213]
[1751547070459,4.78853611,152.44,152.39,205.86]
[1751547070758,4.78853611,152.43,152.4,6.5592]
[1751547070952,4.78853611,152.42,152.41,50.98]
[1751547071660,4.78853611,152.42,152.41,57.539]
[1751547072061,6.557,152.46,152.41,50.98]
[1751547072262,4.78968196,152.45,152.42,6.5583]
[1751547072458,6.5575,152.45,152.42,6.5583]
[1751547073061,6.5578,152.44,152.41,57.5389]
[1751547073354,6.5578,152.44,152.41,50.98]
[1751547073555,5.70915213,152.47,152.41,50.98]
[1751547073756,5.70915213,152.47,152.41,57.539]
[1751547074062,5.70915213,152.48,152.41,57.539]
[1751547074359,5.70915213,152.48,152.42,6.5586]
[1751547074759,6.5573,152.46,152.42,6.5586]
[1751547075159,5.70915213,152.48,152.42,6.5586]
[1751547075355,6.5574,152.45,152.41,57.5388]
[1751547075555,5.70915213,152.48,152.41,50.98]
[1751547075752,2.3167,152.49,152.41,50.98]
[1751547075753,5.70915213,152.46,152.41,50.98]
[1751547075957,6.5579,152.44,152.4,6.5591]
[1751547076265,6.5579,152.44,152.41,50.98]
[1751547076561,5.70915213,152.46,152.41,57.539]
[1751547076562,6.5575,152.45,152.41,57.539]
[1751547077461,6.5575,152.45,152.41,54.25966114]
[1751547077663,6.5578,152.44,152.41,47.70066114]
[1751547077857,5.70915213,152.46,152.41,47.70066114]
[1751547078261,5.70915213,152.46,152.41,42.78165285]
[1751547078469,6.5576,152.45,152.41,49.34045285]
[1751547079360,6.5578,152.44,152.41,42.78165285]
[1751547079861,6.5575,152.45,152.41,42.78165285]
[1751547080262,6.5575,152.45,152.41,49.34075285]
[1751547080664,6.5578,152.44,152.41,42.78165285]
[1751547081465,6.5575,152.45,152.41,42.78165285]
[1751547081766,5.70915213,152.48,152.41,42.78165285]
[1751547081969,6.5576,152.45,152.41,42.78165285]
[1751547082469,2.3167,152.49,152.43,6.5581]
[1751547082470,6.5571,152.46,152.43,6.5581]
[1751547082859,5.70915213,152.48,152.41,42.78165285]
[1751547083662,5.70915213,152.48,152.41,49.34065285]
[1751547083861,4.4488,152.5,152.41,48.49080498]
[1751547084167,6.5566,152.47,152.41,48.49080498]
[1751547084359,4.93738554,152.46,152.42,5.70915213]
[1751547084556,4.93738554,152.45,152.42,5.70915213]
[1751547084760,4.93738554,152.44,152.41,42.78165285]
[1751547084960,4.93738554,152.43,152.42,205.62]
[1751547085162,4.93738554,152.43,152.42,57.3982]
[1751547085659,4.93738554,152.43,152.42,262.9982]
[1751547086164,4.93738554,152.43,152.42,57.3982]
[1751547087075,6.5561,152.48,152.42,50.84]
[1751547087263,5.70915213,152.53,152.44,5.70915213]
[1751547087572,7.77855468,152.54,152.47,6.5563]
[1751547087775,11.85435209,152.54,152.48,50.84]
[1751547087960,6.14519996,152.54,152.51,6.5545]
[1751547088165,6.14555563,152.56,152.49,50.84]
[1751547088463,5.70915213,152.57,152.49,50.84]
[1751547088767,6.5532,152.55,152.49,50.84]
[1751547088971,6.14555563,152.57,152.49,50.84]
[1751547089167,6.5533,152.55,152.49,50.84]
[1751547089868,6.5536,152.54,152.49,50.84]
[1751547090573,4.07579741,152.57,152.49,50.84]
[1751547090774,5.70915213,152.57,152.49,50.84]
[1751547091071,6.5539,152.54,152.51,6.5544]
[1751547091269,5.70915213,152.55,152.49,50.84]
[1751547091471,5.70915213,152.55,152.5,6.5551]
[1751547091672,6.13555707,152.58,152.49,50.84]
[1751547091871,5.70915213,152.58,152.49,50.84]